[Event "Titled Tuesday Blitz December 13 Early 2022"]
[White "Postnikov, Daniil"]
[Black "Estrada Nieto, Julian"]
[WhiteFideId "4166329"]
[BlackFideId "5101018"]
[WhiteElo "2261"]
[BlackElo "2195"]
[Result "1-0"]
[Round "04"]
[TimeControl "180+1"]
[Date "2022.12.14"]
[WhiteClock "0:00:35"]
[BlackClock "0:00:05"]

1. e4 {[%clk 0:02:59]}  e5 {[%clk 0:02:59]} 2. f4 {[%clk 0:02:59]}  d5 {[%clk 0:02:58]} 3. exd5 {[%clk 0:02:58]}  exf4 {[%clk 0:02:59]} 4. Nf3 {[%clk 0:02:57]}  Nf6 {[%clk 0:02:59]} 5. Bc4 {[%clk 0:02:57]}  Bd6 {[%clk 0:02:59]} 6. O-O {[%clk 0:02:55]}  O-O {[%clk 0:02:59]} 7. Nc3 {[%clk 0:02:51]}  c6 {[%clk 0:02:57]} 8. dxc6 {[%clk 0:02:49]}  Nxc6 {[%clk 0:02:57]} 9. d4 {[%clk 0:02:50]}  Bg4 {[%clk 0:02:56]} 10. Nb5 {[%clk 0:02:34]}  Bb8 {[%clk 0:02:53]} 11. c3 {[%clk 0:02:33]}  Re8 {[%clk 0:02:40]} 12. Bd2 {[%clk 0:02:08]}  Ne4 {[%clk 0:02:38]} 13. Qc2 {[%clk 0:01:58]}  a6 {[%clk 0:02:32]} 14. Na3 {[%clk 0:01:57]}  Bxf3 {[%clk 0:02:07]} 15. Rxf3 {[%clk 0:01:54]}  Ng5 {[%clk 0:02:04]} 16. Rff1 {[%clk 0:01:47]}  f3 {[%clk 0:01:57]} 17. Bxg5 {[%clk 0:01:43]}  Qxg5 {[%clk 0:01:56]} 18. Rxf3 {[%clk 0:01:43]}  Re7 {[%clk 0:01:49]} 19. Raf1 {[%clk 0:01:42]}  Ba7 {[%clk 0:01:43]} 20. Rxf7 {[%clk 0:01:41]}  Rxf7 {[%clk 0:01:39]} 21. Rxf7 {[%clk 0:01:42]}  Kh8 {[%clk 0:01:39]} 22. Qf2 {[%clk 0:01:36]}  Qd8 {[%clk 0:01:29]} 23. Rxb7 {[%clk 0:01:35]}  Nxd4 {[%clk 0:01:26]} 24. Rxa7 {[%clk 0:01:17]}  Rxa7 {[%clk 0:01:25]} 25. cxd4 {[%clk 0:01:17]}  Re7 {[%clk 0:01:14]} 26. Nc2 {[%clk 0:01:15]}  Qe8 {[%clk 0:01:12]} 27. b3 {[%clk 0:01:11]}  a5 {[%clk 0:01:09]} 28. a4 {[%clk 0:01:11]}  Re4 {[%clk 0:01:06]} 29. d5 {[%clk 0:01:09]}  h6 {[%clk 0:01:02]} 30. h3 {[%clk 0:01:04]}  Re5 {[%clk 0:01:01]} 31. d6 {[%clk 0:01:02]}  Qd8 {[%clk 0:00:49]} 32. Qd4 {[%clk 0:01:00]}  Re8 {[%clk 0:00:39]} 33. d7 {[%clk 0:00:56]}  Rf8 {[%clk 0:00:38]} 34. Bb5 {[%clk 0:00:48]}  Qg5 {[%clk 0:00:36]} 35. Qe3 {[%clk 0:00:44]}  Qf6 {[%clk 0:00:30]} 36. Nd4 {[%clk 0:00:43]}  Qg6 {[%clk 0:00:17]} 37. Ne6 {[%clk 0:00:40]}  Qb1+ {[%clk 0:00:09]} 38. Kh2 {[%clk 0:00:40]}  Rg8 {[%clk 0:00:06]} 39. d8=Q {[%clk 0:00:39]}  Rxd8 {[%clk 0:00:06]} 40. Nxd8 {[%clk 0:00:40]}  Qd1 {[%clk 0:00:06]} 41. Bd3 {[%clk 0:00:38]}  Qh5 {[%clk 0:00:05]} 42. Qe7 {[%clk 0:00:35]} 1-0


[Site "https://www.chess.com"]

[Event "Titled Tuesday Blitz December 13 Early 2022"]
[White "Przybylski, Wojciech"]
[Black "Aloma Vidal, Robert"]
[WhiteFideId "1117599"]
[BlackFideId "2260409"]
[WhiteElo "2217"]
[BlackElo "2435"]
[Result "1-0"]
[Round "04"]
[TimeControl "180+1"]
[Date "2022.12.14"]
[WhiteClock "0:00:25"]
[BlackClock "0:00:03"]

1. e4 {[%clk 0:03:00]}  e5 {[%clk 0:02:54]} 2. Nf3 {[%clk 0:02:56]}  Nf6 {[%clk 0:02:54]} 3. Nxe5 {[%clk 0:02:48]}  d6 {[%clk 0:02:54]} 4. Nf3 {[%clk 0:02:48]}  Nxe4 {[%clk 0:02:54]} 5. d4 {[%clk 0:02:48]}  d5 {[%clk 0:02:55]} 6. Bd3 {[%clk 0:02:48]}  Bd6 {[%clk 0:02:55]} 7. O-O {[%clk 0:02:48]}  O-O {[%clk 0:02:56]} 8. c4 {[%clk 0:02:48]}  c6 {[%clk 0:02:56]} 9. cxd5 {[%clk 0:02:41]}  cxd5 {[%clk 0:02:56]} 10. Nc3 {[%clk 0:02:38]}  Nxc3 {[%clk 0:02:56]} 11. bxc3 {[%clk 0:02:38]}  Bg4 {[%clk 0:02:44]} 12. Rb1 {[%clk 0:02:38]}  Nd7 {[%clk 0:02:43]} 13. h3 {[%clk 0:02:38]}  Bh5 {[%clk 0:02:40]} 14. Rxb7 {[%clk 0:02:36]}  Nb6 {[%clk 0:02:29]} 15. Ba6 {[%clk 0:02:35]}  h6 {[%clk 0:02:03]} 16. Re1 {[%clk 0:02:34]}  Qf6 {[%clk 0:01:58]} 17. g4 {[%clk 0:02:31]}  Bg6 {[%clk 0:01:59]} 18. Ne5 {[%clk 0:02:31]}  Be4 {[%clk 0:01:43]} 19. f3 {[%clk 0:02:10]}  Bxe5 {[%clk 0:01:42]} 20. fxe4 {[%clk 0:01:50]}  Qh4 {[%clk 0:01:22]} 21. dxe5 {[%clk 0:01:33]}  Qg3+ {[%clk 0:01:22]} 22. Kf1 {[%clk 0:01:33]}  Qxh3+ {[%clk 0:01:22]} 23. Ke2 {[%clk 0:01:31]}  Qg2+ {[%clk 0:01:09]} 24. Kd3 {[%clk 0:01:12]}  dxe4+ {[%clk 0:01:07]} 25. Rxe4 {[%clk 0:01:11]}  Rad8+ {[%clk 0:00:47]} 26. Rd4 {[%clk 0:01:07]}  Nd5 {[%clk 0:00:24]} 27. Bd2 {[%clk 0:00:51]}  Rc8 {[%clk 0:00:15]} 28. Rb3 {[%clk 0:00:39]}  Rfd8 {[%clk 0:00:14]} 29. Bb7 {[%clk 0:00:36]}  Rc5 {[%clk 0:00:06]} 30. Qe2 {[%clk 0:00:24]}  Qg3+ {[%clk 0:00:03]} 31. Kc2 {[%clk 0:00:25]} 1-0


[Site "https://www.chess.com"]

[Event "Titled Tuesday Blitz December 13 Early 2022"]
[White "Raahul V S"]
[Black "Golizadeh, Asghar"]
[WhiteFideId "25035525"]
[BlackFideId "12505269"]
[WhiteElo "2202"]
[BlackElo "2403"]
[Result "1-0"]
[Round "04"]
[TimeControl "180+1"]
[Date "2022.12.14"]
[WhiteClock "0:00:10"]
[BlackClock "0:00:11"]

1. b3 {[%clk 0:02:54]}  e5 {[%clk 0:02:58]} 2. Bb2 {[%clk 0:02:54]}  Nc6 {[%clk 0:02:59]} 3. c4 {[%clk 0:02:54]}  Nf6 {[%clk 0:02:58]} 4. e3 {[%clk 0:02:54]}  Be7 {[%clk 0:02:54]} 5. Nf3 {[%clk 0:02:53]}  d6 {[%clk 0:02:53]} 6. d4 {[%clk 0:02:52]}  exd4 {[%clk 0:02:52]} 7. Nxd4 {[%clk 0:02:52]}  Nxd4 {[%clk 0:02:52]} 8. Qxd4 {[%clk 0:02:50]}  O-O {[%clk 0:02:52]} 9. Be2 {[%clk 0:02:49]}  Ne8 {[%clk 0:02:49]} 10. Nc3 {[%clk 0:02:48]}  Bf6 {[%clk 0:02:47]} 11. Qd2 {[%clk 0:02:48]}  Bf5 {[%clk 0:02:41]} 12. O-O {[%clk 0:02:39]}  c6 {[%clk 0:02:33]} 13. Rad1 {[%clk 0:02:37]}  Qe7 {[%clk 0:02:27]} 14. Bd3 {[%clk 0:02:27]}  Bg4 {[%clk 0:02:14]} 15. f3 {[%clk 0:02:14]}  Bh5 {[%clk 0:02:10]} 16. Rde1 {[%clk 0:01:52]}  Nc7 {[%clk 0:01:58]} 17. f4 {[%clk 0:01:46]}  Bg6 {[%clk 0:01:31]} 18. f5 {[%clk 0:01:45]}  Bh5 {[%clk 0:01:29]} 19. h3 {[%clk 0:01:45]}  Bh4 {[%clk 0:01:27]} 20. g4 {[%clk 0:01:33]}  Bxe1 {[%clk 0:01:23]} 21. Qxe1 {[%clk 0:01:33]}  Rae8 {[%clk 0:01:17]} 22. Ne4 {[%clk 0:01:16]}  f6 {[%clk 0:00:55]} 23. gxh5 {[%clk 0:01:14]}  d5 {[%clk 0:00:54]} 24. cxd5 {[%clk 0:01:04]}  cxd5 {[%clk 0:00:53]} 25. Nf2 {[%clk 0:01:03]}  Qxe3 {[%clk 0:00:42]} 26. Qxe3 {[%clk 0:01:03]}  Rxe3 {[%clk 0:00:42]} 27. Bd4 {[%clk 0:01:04]}  Rg3+ {[%clk 0:00:19]} 28. Kh2 {[%clk 0:01:02]}  Rg5 {[%clk 0:00:20]} 29. h6 {[%clk 0:00:39]}  gxh6 {[%clk 0:00:19]} 30. Ng4 {[%clk 0:00:38]}  Kg7 {[%clk 0:00:17]} 31. Be3 {[%clk 0:00:35]}  Rh5 {[%clk 0:00:17]} 32. Rc1 {[%clk 0:00:27]}  Ne8 {[%clk 0:00:15]} 33. Bf4 {[%clk 0:00:21]}  Rf7 {[%clk 0:00:15]} 34. Rc8 {[%clk 0:00:20]}  Re7 {[%clk 0:00:15]} 35. Kg3 {[%clk 0:00:18]}  Kf7 {[%clk 0:00:14]} 36. Nxh6+ {[%clk 0:00:17]}  Kg7 {[%clk 0:00:14]} 37. Ng4 {[%clk 0:00:17]}  Kf7 {[%clk 0:00:15]} 38. b4 {[%clk 0:00:16]}  Kg7 {[%clk 0:00:15]} 39. b5 {[%clk 0:00:16]}  h6 {[%clk 0:00:15]} 40. a4 {[%clk 0:00:15]}  b6 {[%clk 0:00:15]} 41. Rc6 {[%clk 0:00:13]}  Kh7 {[%clk 0:00:14]} 42. Rxf6 {[%clk 0:00:12]}  Rg7 {[%clk 0:00:12]} 43. Re6 {[%clk 0:00:09]}  Nc7 {[%clk 0:00:11]} 44. f6+ {[%clk 0:00:09]}  Kh8 {[%clk 0:00:09]} 45. fxg7+ {[%clk 0:00:09]}  Kxg7 {[%clk 0:00:10]} 46. Bxc7 {[%clk 0:00:10]}  Kf8 {[%clk 0:00:11]} 47. Rf6+ {[%clk 0:00:10]}  Ke7 {[%clk 0:00:10]} 48. Bd6+ {[%clk 0:00:10]}  Kd7 {[%clk 0:00:11]} 49. Bf5+ {[%clk 0:00:10]} 1-0


[Site "https://www.chess.com"]

[Event "Titled Tuesday Blitz December 13 Early 2022"]
[White "Ronka, Erik"]
[Black "Torres Cueto, Jesus Marcial"]
[WhiteFideId "505080"]
[BlackFideId "4415280"]
[WhiteElo "2264"]
[BlackElo "2022"]
[Result "1-0"]
[Round "04"]
[TimeControl "180+1"]
[Date "2022.12.14"]
[WhiteClock "0:00:58"]
[BlackClock "0:00:41"]

1. e4 {[%clk 0:03:00]}  e6 {[%clk 0:03:00]} 2. d4 {[%clk 0:02:53]}  d5 {[%clk 0:02:59]} 3. Nd2 {[%clk 0:02:54]}  c5 {[%clk 0:02:58]} 4. exd5 {[%clk 0:02:53]}  Qxd5 {[%clk 0:02:59]} 5. Ngf3 {[%clk 0:02:51]}  cxd4 {[%clk 0:03:00]} 6. Bc4 {[%clk 0:02:42]}  Qd6 {[%clk 0:02:58]} 7. O-O {[%clk 0:02:30]}  Nc6 {[%clk 0:02:58]} 8. Nb3 {[%clk 0:02:30]}  a6 {[%clk 0:02:46]} 9. Nbxd4 {[%clk 0:02:30]}  Nxd4 {[%clk 0:02:46]} 10. Nxd4 {[%clk 0:02:24]}  Qc7 {[%clk 0:02:46]} 11. Bd3 {[%clk 0:02:20]}  Bd6 {[%clk 0:02:45]} 12. Re1 {[%clk 0:02:18]}  Ne7 {[%clk 0:02:45]} 13. Qh5 {[%clk 0:02:10]}  g6 {[%clk 0:02:37]} 14. Qh4 {[%clk 0:02:07]}  Be5 {[%clk 0:02:30]} 15. Bg5 {[%clk 0:02:01]}  Nd5 {[%clk 0:02:19]} 16. c4 {[%clk 0:01:47]}  Nb4 {[%clk 0:02:08]} 17. Bxg6 {[%clk 0:01:21]}  hxg6 {[%clk 0:01:45]} 18. Qe4 {[%clk 0:01:17]}  Bxd4 {[%clk 0:01:10]} 19. Qxd4 {[%clk 0:01:17]}  Qxh2+ {[%clk 0:01:10]} 20. Kf1 {[%clk 0:01:17]}  Nc6 {[%clk 0:01:11]} 21. Qf6 {[%clk 0:01:05]}  Bd7 {[%clk 0:00:55]} 22. Rad1 {[%clk 0:01:00]}  Qh1+ {[%clk 0:00:41]} 23. Ke2 {[%clk 0:01:00]}  Qxg2 {[%clk 0:00:41]} 24. Qxh8# {[%clk 0:00:58]} 1-0


[Site "https://www.chess.com"]

[Event "Titled Tuesday Blitz December 13 Early 2022"]
[White "Rustemov, Alexander"]
[Black "Paravyan, David"]
[WhiteFideId "4119002"]
[BlackFideId "4194985"]
[WhiteElo "2815"]
[BlackElo "2551"]
[Result "0-1"]
[Round "04"]
[TimeControl "180+1"]
[Date "2022.12.13"]
[WhiteClock "0:00:01"]
[BlackClock "0:00:08"]

1. Nf3 {[%clk 0:03:00]}  Nf6 {[%clk 0:02:59]} 2. g3 {[%clk 0:03:01]}  g6 {[%clk 0:03:00]} 3. Bg2 {[%clk 0:03:01]}  Bg7 {[%clk 0:03:00]} 4. O-O {[%clk 0:02:57]}  O-O {[%clk 0:02:58]} 5. c4 {[%clk 0:02:58]}  c6 {[%clk 0:02:57]} 6. b3 {[%clk 0:02:58]}  Ne4 {[%clk 0:02:57]} 7. d4 {[%clk 0:02:55]}  d5 {[%clk 0:02:57]} 8. Bb2 {[%clk 0:02:54]}  a5 {[%clk 0:02:57]} 9. Nc3 {[%clk 0:02:53]}  Nxc3 {[%clk 0:02:57]} 10. Bxc3 {[%clk 0:02:53]}  Nd7 {[%clk 0:02:58]} 11. e3 {[%clk 0:02:49]}  b5 {[%clk 0:02:52]} 12. cxd5 {[%clk 0:02:40]}  cxd5 {[%clk 0:02:51]} 13. Ne5 {[%clk 0:02:41]}  Bb7 {[%clk 0:02:46]} 14. Rc1 {[%clk 0:02:37]}  b4 {[%clk 0:02:43]} 15. Bb2 {[%clk 0:02:35]}  Nxe5 {[%clk 0:02:42]} 16. dxe5 {[%clk 0:02:35]}  Qd7 {[%clk 0:02:43]} 17. Qd2 {[%clk 0:02:20]}  Rfc8 {[%clk 0:02:38]} 18. Bd4 {[%clk 0:02:16]}  Rxc1 {[%clk 0:02:32]} 19. Rxc1 {[%clk 0:02:16]}  Rc8 {[%clk 0:02:33]} 20. f4 {[%clk 0:01:37]}  e6 {[%clk 0:02:32]} 21. Kf2 {[%clk 0:01:35]}  Bf8 {[%clk 0:02:31]} 22. Bf1 {[%clk 0:01:27]}  Rc7 {[%clk 0:02:26]} 23. Bd3 {[%clk 0:01:24]}  Qc8 {[%clk 0:02:23]} 24. Rxc7 {[%clk 0:01:23]}  Qxc7 {[%clk 0:02:24]} 25. Qc2 {[%clk 0:01:23]}  Qd7 {[%clk 0:01:34]} 26. g4 {[%clk 0:01:20]}  Bc6 {[%clk 0:01:21]} 27. Qe2 {[%clk 0:01:18]}  a4 {[%clk 0:01:18]} 28. g5 {[%clk 0:01:12]}  h5 {[%clk 0:01:12]} 29. Ke1 {[%clk 0:01:08]}  Qb7 {[%clk 0:01:08]} 30. Kd1 {[%clk 0:01:05]}  Bd7 {[%clk 0:01:02]} 31. Kc2 {[%clk 0:01:04]}  Bc5 {[%clk 0:00:53]} 32. Qd2 {[%clk 0:00:51]}  Qb6 {[%clk 0:00:47]} 33. Be2 {[%clk 0:00:49]}  Bb5 {[%clk 0:00:36]} 34. Bxb5 {[%clk 0:00:44]}  Qxb5 {[%clk 0:00:35]} 35. Qd3 {[%clk 0:00:44]}  Qc6 {[%clk 0:00:33]} 36. Kd2 {[%clk 0:00:37]}  Bxd4 {[%clk 0:00:31]} 37. exd4 {[%clk 0:00:37]}  Qa8 {[%clk 0:00:22]} 38. Qc2 {[%clk 0:00:36]}  axb3 {[%clk 0:00:18]} 39. axb3 {[%clk 0:00:36]}  Qa1 {[%clk 0:00:16]} 40. Qc5 {[%clk 0:00:28]}  Qb2+ {[%clk 0:00:16]} 41. Ke1 {[%clk 0:00:24]}  Qxb3 {[%clk 0:00:15]} 42. Kf2 {[%clk 0:00:10]}  Qb2+ {[%clk 0:00:15]} 43. Kf3 {[%clk 0:00:07]}  Qxh2 {[%clk 0:00:05]} 44. Qc8+ {[%clk 0:00:06]}  Kg7 {[%clk 0:00:05]} 45. Qd8 {[%clk 0:00:07]}  Qh3+ {[%clk 0:00:05]} 46. Kf2 {[%clk 0:00:07]}  Qf5 {[%clk 0:00:06]} 47. Ke3 {[%clk 0:00:02]}  Qe4+ {[%clk 0:00:07]} 48. Kd2 {[%clk 0:00:02]}  Qxf4+ {[%clk 0:00:08]} 49. Kc2 {[%clk 0:00:02]}  h4 {[%clk 0:00:07]} 50. Kb3 {[%clk 0:00:02]}  h3 {[%clk 0:00:07]} 51. Qf6+ {[%clk 0:00:01]}  Qxf6 {[%clk 0:00:07]} 52. exf6+ {[%clk 0:00:01]}  Kh7 {[%clk 0:00:08]} 0-1


[Site "https://www.chess.com"]

[Event "Titled Tuesday Blitz December 13 Early 2022"]
[White "Shapiro, Daniel"]
[Black "Iskusnyh, Sergei"]
[WhiteFideId "2001780"]
[BlackFideId "4120027"]
[WhiteElo "2364"]
[BlackElo "2492"]
[Result "0-1"]
[Round "04"]
[TimeControl "180+1"]
[Date "2022.12.14"]
[WhiteClock "0:00:05"]
[BlackClock "0:00:53"]

1. d4 {[%clk 0:03:00]}  d5 {[%clk 0:02:59]} 2. c4 {[%clk 0:03:00]}  c6 {[%clk 0:02:58]} 3. Nf3 {[%clk 0:03:00]}  Nf6 {[%clk 0:02:58]} 4. Qb3 {[%clk 0:03:00]}  dxc4 {[%clk 0:02:58]} 5. Qxc4 {[%clk 0:03:00]}  Bf5 {[%clk 0:02:58]} 6. Nc3 {[%clk 0:02:57]}  e6 {[%clk 0:02:57]} 7. Qb3 {[%clk 0:02:56]}  Qb6 {[%clk 0:02:54]} 8. Nd2 {[%clk 0:02:53]}  Nbd7 {[%clk 0:02:43]} 9. e4 {[%clk 0:02:23]}  Bg6 {[%clk 0:02:41]} 10. Nc4 {[%clk 0:01:59]}  Qxb3 {[%clk 0:02:39]} 11. axb3 {[%clk 0:01:59]}  Nxe4 {[%clk 0:02:34]} 12. f3 {[%clk 0:01:33]}  Nd6 {[%clk 0:02:21]} 13. Ne5 {[%clk 0:01:26]}  Nf5 {[%clk 0:02:03]} 14. Nxd7 {[%clk 0:01:17]}  Kxd7 {[%clk 0:02:03]} 15. Bf4 {[%clk 0:01:10]}  Bd6 {[%clk 0:02:02]} 16. Bxd6 {[%clk 0:01:04]}  Kxd6 {[%clk 0:02:02]} 17. Ne4+ {[%clk 0:00:57]}  Kc7 {[%clk 0:02:00]} 18. Ra4 {[%clk 0:00:29]}  Rhd8 {[%clk 0:01:57]} 19. Be2 {[%clk 0:00:20]}  Nxd4 {[%clk 0:01:53]} 20. Bd1 {[%clk 0:00:17]}  Bxe4 {[%clk 0:01:24]} 21. fxe4 {[%clk 0:00:16]}  e5 {[%clk 0:01:16]} 22. O-O {[%clk 0:00:15]}  f6 {[%clk 0:01:15]} 23. b4 {[%clk 0:00:14]}  Rd6 {[%clk 0:01:09]} 24. Bg4 {[%clk 0:00:11]}  a6 {[%clk 0:01:06]} 25. Kf2 {[%clk 0:00:10]}  Rad8 {[%clk 0:01:06]} 26. Rd1 {[%clk 0:00:10]}  Nc2 {[%clk 0:00:58]} 27. Rxd6 {[%clk 0:00:09]}  Rxd6 {[%clk 0:00:59]} 28. Ke2 {[%clk 0:00:08]}  Rd4 {[%clk 0:00:58]} 29. Ra2 {[%clk 0:00:06]}  Nxb4 {[%clk 0:00:54]} 30. Bf3 {[%clk 0:00:05]}  Nxa2 {[%clk 0:00:53]} 0-1


[Site "https://www.chess.com"]

[Event "Titled Tuesday Blitz December 13 Early 2022"]
[White "Shipov, Sergei"]
[Black "Manelyuk, Daniil"]
[WhiteFideId "4113624"]
[BlackFideId "44173920"]
[WhiteElo "2785"]
[BlackElo "2210"]
[Result "0-1"]
[Round "04"]
[TimeControl "180+1"]
[Date "2022.12.14"]
[WhiteClock "0:00:18"]
[BlackClock "0:00:51"]

1. d4 {[%clk 0:03:00]}  Nf6 {[%clk 0:02:59]} 2. c4 {[%clk 0:03:00]}  g6 {[%clk 0:02:56]} 3. Nc3 {[%clk 0:03:00]}  d5 {[%clk 0:02:56]} 4. Nf3 {[%clk 0:03:00]}  Bg7 {[%clk 0:02:55]} 5. cxd5 {[%clk 0:03:00]}  Nxd5 {[%clk 0:02:55]} 6. Na4 {[%clk 0:03:01]}  O-O {[%clk 0:02:55]} 7. e4 {[%clk 0:03:01]}  Nb6 {[%clk 0:02:55]} 8. Be2 {[%clk 0:03:01]}  Nxa4 {[%clk 0:02:53]} 9. Qxa4 {[%clk 0:03:01]}  c5 {[%clk 0:02:52]} 10. Be3 {[%clk 0:02:13]}  Nc6 {[%clk 0:02:41]} 11. dxc5 {[%clk 0:01:08]}  Bxb2 {[%clk 0:02:40]} 12. Rb1 {[%clk 0:01:08]}  Bc3+ {[%clk 0:02:40]} 13. Kf1 {[%clk 0:01:08]}  Qc7 {[%clk 0:02:37]} 14. h4 {[%clk 0:01:08]}  h5 {[%clk 0:02:23]} 15. g3 {[%clk 0:01:00]}  Bg4 {[%clk 0:01:53]} 16. Kg2 {[%clk 0:00:59]}  Ne5 {[%clk 0:01:47]} 17. Qb3 {[%clk 0:00:53]}  Qa5 {[%clk 0:01:32]} 18. Nxe5 {[%clk 0:00:36]}  Bxe2 {[%clk 0:01:28]} 19. Nxg6 {[%clk 0:00:36]}  Bd3 {[%clk 0:01:10]} 20. Nxe7+ {[%clk 0:00:22]}  Kg7 {[%clk 0:00:53]} 21. Qd5 {[%clk 0:00:18]}  Rfd8 {[%clk 0:00:51]} 0-1


[Site "https://www.chess.com"]

[Event "Titled Tuesday Blitz December 13 Early 2022"]
[White "Shtompel, Yuriy"]
[Black "Larina, Maria"]
[WhiteFideId "14168278"]
[BlackFideId "24113182"]
[WhiteElo "1844"]
[BlackElo "1848"]
[Result "1-0"]
[Round "04"]
[TimeControl "180+1"]
[Date "2022.12.14"]
[WhiteClock "0:00:08"]
[BlackClock "0:00:02"]

1. e4 {[%clk 0:03:00]}  c6 {[%clk 0:02:59]} 2. d4 {[%clk 0:02:52]}  d5 {[%clk 0:03:00]} 3. e5 {[%clk 0:02:52]}  c5 {[%clk 0:03:00]} 4. dxc5 {[%clk 0:02:50]}  e6 {[%clk 0:02:58]} 5. Nf3 {[%clk 0:02:37]}  Bxc5 {[%clk 0:02:55]} 6. Bd3 {[%clk 0:02:20]}  Nc6 {[%clk 0:02:52]} 7. a3 {[%clk 0:02:20]}  Nge7 {[%clk 0:02:50]} 8. O-O {[%clk 0:02:17]}  Ng6 {[%clk 0:02:50]} 9. Qe2 {[%clk 0:02:17]}  O-O {[%clk 0:02:49]} 10. Re1 {[%clk 0:02:13]}  a6 {[%clk 0:02:44]} 11. Nbd2 {[%clk 0:02:06]}  b5 {[%clk 0:02:42]} 12. Nb3 {[%clk 0:02:05]}  Bb6 {[%clk 0:02:39]} 13. Bg5 {[%clk 0:02:04]}  Qc7 {[%clk 0:02:35]} 14. h4 {[%clk 0:01:57]}  h6 {[%clk 0:02:09]} 15. Bd2 {[%clk 0:01:39]}  Bb7 {[%clk 0:02:06]} 16. c3 {[%clk 0:01:24]}  Na5 {[%clk 0:01:46]} 17. Nxa5 {[%clk 0:01:15]}  Bxa5 {[%clk 0:01:47]} 18. Rad1 {[%clk 0:01:11]}  Rac8 {[%clk 0:01:42]} 19. Nd4 {[%clk 0:01:03]}  Bb6 {[%clk 0:01:37]} 20. h5 {[%clk 0:00:59]}  Ne7 {[%clk 0:01:35]} 21. Qg4 {[%clk 0:00:58]}  Bxd4 {[%clk 0:01:30]} 22. cxd4 {[%clk 0:00:54]}  Kh8 {[%clk 0:01:24]} 23. f4 {[%clk 0:00:49]}  Qb6 {[%clk 0:01:21]} 24. Be3 {[%clk 0:00:49]}  b4 {[%clk 0:01:09]} 25. Rf1 {[%clk 0:00:33]}  Rc7 {[%clk 0:00:54]} 26. Qh3 {[%clk 0:00:22]}  bxa3 {[%clk 0:00:40]} 27. bxa3 {[%clk 0:00:22]}  Qb2 {[%clk 0:00:40]} 28. f5 {[%clk 0:00:20]}  exf5 {[%clk 0:00:39]} 29. Rxf5 {[%clk 0:00:14]}  Rc2 {[%clk 0:00:32]} 30. Rf2 {[%clk 0:00:11]}  Rxf2 {[%clk 0:00:30]} 31. Bxf2 {[%clk 0:00:12]}  Qxa3 {[%clk 0:00:23]} 32. Bh4 {[%clk 0:00:12]}  Qa4 {[%clk 0:00:13]} 33. Bxe7 {[%clk 0:00:10]}  Qxd1+ {[%clk 0:00:13]} 34. Kh2 {[%clk 0:00:10]}  Re8 {[%clk 0:00:08]} 35. Qf5 {[%clk 0:00:09]}  g6 {[%clk 0:00:05]} 36. hxg6 {[%clk 0:00:07]}  fxg6 {[%clk 0:00:06]} 37. Bf6+ {[%clk 0:00:06]}  Kg8 {[%clk 0:00:02]} 38. Qxg6+ {[%clk 0:00:07]}  Kf8 {[%clk 0:00:02]} 39. Qg7# {[%clk 0:00:08]} 1-0


[Site "https://www.chess.com"]

[Event "Titled Tuesday Blitz December 13 Early 2022"]
[White "Sjugirov, Sanan"]
[Black "Pakleza, Zbigniew"]
[WhiteFideId "4189302"]
[BlackFideId "1119290"]
[WhiteElo "2613"]
[BlackElo "2410"]
[Result "1-0"]
[Round "04"]
[TimeControl "180+1"]
[Date "2022.12.13"]
[WhiteClock "0:00:03"]
[BlackClock "0:00:01"]

1. e4 {[%clk 0:03:00]}  d6 {[%clk 0:02:58]} 2. d4 {[%clk 0:03:00]}  Nf6 {[%clk 0:02:58]} 3. Bd3 {[%clk 0:02:55]}  e5 {[%clk 0:02:58]} 4. c3 {[%clk 0:02:55]}  d5 {[%clk 0:02:58]} 5. dxe5 {[%clk 0:02:54]}  dxe4 {[%clk 0:02:58]} 6. Bb5+ {[%clk 0:02:41]}  c6 {[%clk 0:02:58]} 7. Qxd8+ {[%clk 0:02:24]}  Kxd8 {[%clk 0:02:59]} 8. exf6 {[%clk 0:02:24]}  cxb5 {[%clk 0:03:00]} 9. Bg5 {[%clk 0:02:21]}  Kc7 {[%clk 0:03:00]} 10. Nd2 {[%clk 0:02:15]}  Bf5 {[%clk 0:02:57]} 11. Ne2 {[%clk 0:02:13]}  Bg6 {[%clk 0:02:40]} 12. Nf4 {[%clk 0:02:02]}  Nd7 {[%clk 0:02:28]} 13. Nxg6 {[%clk 0:01:41]}  hxg6 {[%clk 0:02:29]} 14. Bf4+ {[%clk 0:01:39]}  Kc6 {[%clk 0:02:22]} 15. fxg7 {[%clk 0:01:39]}  Bxg7 {[%clk 0:02:22]} 16. O-O-O {[%clk 0:01:40]}  Nc5 {[%clk 0:02:19]} 17. Be3 {[%clk 0:01:32]}  Bh6 {[%clk 0:01:49]} 18. Bd4 {[%clk 0:01:20]}  Rhd8 {[%clk 0:01:35]} 19. Kc2 {[%clk 0:01:19]}  Bxd2 {[%clk 0:01:22]} 20. Rxd2 {[%clk 0:01:16]}  Ne6 {[%clk 0:01:23]} 21. Bf6 {[%clk 0:01:06]}  Rxd2+ {[%clk 0:01:18]} 22. Kxd2 {[%clk 0:01:07]}  Nf4 {[%clk 0:01:11]} 23. g3 {[%clk 0:00:52]}  Nd3 {[%clk 0:00:54]} 24. Ke3 {[%clk 0:00:52]}  Nxb2 {[%clk 0:00:41]} 25. Kxe4 {[%clk 0:00:51]}  Re8+ {[%clk 0:00:41]} 26. Kf3 {[%clk 0:00:49]}  Nc4 {[%clk 0:00:30]} 27. h4 {[%clk 0:00:45]}  Nd2+ {[%clk 0:00:26]} 28. Kg2 {[%clk 0:00:41]}  Ne4 {[%clk 0:00:19]} 29. Bd4 {[%clk 0:00:40]}  Kd5 {[%clk 0:00:20]} 30. Rd1 {[%clk 0:00:08]}  Kc4 {[%clk 0:00:20]} 31. Bg7 {[%clk 0:00:08]}  f6 {[%clk 0:00:14]} 32. Rd7 {[%clk 0:00:05]}  Nc5 {[%clk 0:00:05]} 33. Rc7 {[%clk 0:00:04]}  Re6 {[%clk 0:00:06]} 34. g4 {[%clk 0:00:04]}  a5 {[%clk 0:00:03]} 35. h5 {[%clk 0:00:04]}  gxh5 {[%clk 0:00:04]} 36. gxh5 {[%clk 0:00:05]}  Re5 {[%clk 0:00:02]} 37. h6 {[%clk 0:00:05]}  Rh5 {[%clk 0:00:02]} 38. Kg3 {[%clk 0:00:04]}  Kd5 {[%clk 0:00:01]} 39. Kg4 {[%clk 0:00:04]}  Rg5+ {[%clk 0:00:02]} 40. Kf3 {[%clk 0:00:04]}  Ne6 {[%clk 0:00:02]} 41. Rd7+ {[%clk 0:00:04]}  Kc6 {[%clk 0:00:03]} 42. Re7 {[%clk 0:00:04]}  Rf5+ {[%clk 0:00:02]} 43. Kg4 {[%clk 0:00:04]}  Rg5+ {[%clk 0:00:02]} 44. Kh4 {[%clk 0:00:05]}  Nf4 {[%clk 0:00:03]} 45. Bxf6 {[%clk 0:00:04]}  Rg6 {[%clk 0:00:01]} 46. Bg7 {[%clk 0:00:04]}  Rg1 {[%clk 0:00:01]} 47. Rf7 {[%clk 0:00:03]} 1-0


[Site "https://www.chess.com"]